Cogmind - Beta 17.1 @@@ ROGUE MODE // 2026.09.06 @ 12:02:48 Player: McSaucyNugget Result: Destroyed by H-88 Terminator with KE Penetrator Performance ------------- Evolutions (9) 4500 Regions Visited (16) 3200 Robots Destroyed (0) 0 Value Destroyed (30) 30 Prototype IDs (6) 120 Alien Tech Used (0) 0 Bonus (10006) 10006 TOTAL SCORE: 17856 Bonus ------- Pacifist 7706 Triggered Max Security 1000 Entered DSFs 1000 Aligned with FarCom 300 Cogmind --------- Core Integrity 0/1600 Matter 300/300 Energy 100/100 System Corruption 3% Temperature Cool (0) Movement Core (50) Location -1/Access Parts ------- > --- POWER (2) -------- (None) > --- PROPULSION (9) --- (None) > --- UTILITY (12) ----- (None) > --- WEAPON (2) ------- (None) > --- INVENTORY (5) ---- Advanced ECM Suite Improved Field Recycling Unit (0) Peak State ------------ > --- POWER ------------ Mini Fusion Reactor Mini Fusion Reactor > --- PROPULSION ------- Cesium-ion Thruster Impulse Thruster Flying Fortress v7 > --- UTILITY ---------- Large Storage Unit Experimental Optical Array Advanced Terrain Scanner Advanced Terrain Scan Processor Improved Transmission Jammer Cloaking Device Hacking Suite Hacking Suite Hacking Suite Hacking Suite Hacking Suite Improved System Shield > --- WEAPON ----------- Katana Katana > --- INVENTORY -------- Mini Fusion Reactor Antigrav Array Medium Matter Pod Improved Trap Scanner Advanced ECM Suite Improved Medium Armor Plating Layered Light Armor Plating Graphene Brace Hacking Suite Long-range Tractor Beam Improved Field Recycling Unit Improved Datajack Improved Plasma Cutter Lance [Rating: 120] Favorites ----------- Power Mini Fusion Reactor Power Core Nuclear Core Reactor Mini Fusion Reactor Propulsion Flying Fortress v7 Treads Light Treads Leg Centrium Leg Wheel Wheel Hover Unit Backup Propulsion VII Flight Unit Flying Fortress v7 Utility Hacking Suite Device Improved Transmission Jammer Storage Large Storage Unit Processor Improved Signal Interpreter Hackware Hacking Suite Protection Improved Medium Armor Plating Weapon Katana Special Weapon Improved Plasma Cutter Slashing Weapon Katana Build | -11 -10 -10 -10 -9 -8 -7 -7 -6 -5 -5 -4 -3 -3 -2 -2 -1 ------- Run | Yrd Mat Min Exi Min Mat Fac DSF Fac Fac DSF Fac Res Arm Res Tes Acc Slots Evolved 18 | . . . . . 4 2 . 2 2 . 2 2 . 2 . 2 Power 1 | . . . . . . . . . . . . . . 1 . . Propulsion 7 | . . . . . 2 1 . . . . 1 . . 1 . 2 Utility 10 | . . . . . 2 1 . 2 2 . 1 2 . . . . Weapon . | . . . . . . . . . . . . . . . . . Parts Attached 52 | 2 2 . . 1 6 5 . 4 2 . 5 7 2 7 . 9 Power 8 | . . . . . . 1 . 2 . . 1 . 1 1 . 2 Engine . | . . . . . . . . . . . . . . . . . Core 4 | . . . . . . 1 . 1 . . . . . . . 2 Reactor 4 | . . . . . . . . 1 . . 1 . 1 1 . . Propulsion 11 | 2 . . . . 1 1 . . . . . 1 . 2 . 4 Treads 3 | 2 . . . . . . . . . . . . . 1 . . Leg 1 | . . . . . . . . . . . . . . . . 1 Wheel 1 | . . . . . . . . . . . . . . . . 1 Hover 1 | . . . . . . . . . . . . . . 1 . . Flight 5 | . . . . . 1 1 . . . . . 1 . . . 2 Utility 29 | . 1 . . 1 5 1 . 2 2 . 4 6 1 4 . 2 Device 12 | . . . . . 1 . . . 2 . 2 3 1 1 . 2 Storage 1 | . . . . . 1 . . . . . . . . . . . Processor 4 | . 1 . . . 1 . . . . . . 1 . 1 . . Hackware 7 | . . . . . 1 . . 2 . . 1 1 . 2 . . Protection 5 | . . . . 1 1 1 . . . . 1 1 . . . . Artifact . | . . . . . . . . . . . . . . . . . Weapon 4 | . 1 . . . . 2 . . . . . . . . . 1 Energy Gun . | . . . . . . . . . . . . . . . . . Energy Cannon . | . . . . . . . . . . . . . . . . . Ballistic Gun . | . . . . . . . . . . . . . . . . . Ballistic Cannon . | . . . . . . . . . . . . . . . . . Launcher . | . . . . . . . . . . . . . . . . . Special Weapon 1 | . . . . . . . . . . . . . . . . 1 Impact Weapon . | . . . . . . . . . . . . . . . . . Slashing Weapon 3 | . 1 . . . . 2 . . . . . . . . . . Piercing Weapon . | . . . . . . . . . . . . . . . . . Special Melee Weapon . | . . . . . . . . . . . . . . . . . Unidentified Prototypes 6 | . . . . . 1 . . 2 . . . . 1 1 . 1 Parts Lost 24 | . . . . . . . . . . 1 . . . 14 . 9 Power 3 | . . . . . . . . . . 1 . . . 1 . 1 Propulsion 9 | . . . . . . . . . . . . . . 5 . 4 Utility 9 | . . . . . . . . . . . . . . 6 . 3 Weapon 3 | . . . . . . . . . . . . . . 2 . 1 Highest Loss Streak 13 | . . . . . . . . . . 1 . . . 13 . 6 To Critical Strikes 1 | . . . . . . . . . . . . . . 1 . . Average Backups 8 | . . 1 1 2 5 11 14 14 13 13 13 14 14 11 4 4 Power . | . . . . . . . . . 1 1 . 1 1 . . . Propulsion . | . . . . 1 1 1 1 . . . . . . . . . Utility 5 | . . 1 1 1 2 6 8 9 8 9 9 9 9 7 3 2 Weapon 1 | . . . . . . 2 3 3 2 2 2 2 1 . . . Tool/Special . | . . . . . . . . . . . . . . . . . Unused Backups 17 | . . . . . . 2 5 . 1 . 4 . . 4 . 1 Power 1 | . . . . . . . . . . . . . . 1 . . Propulsion 3 | . . . . . . 1 2 . . . . . . . . . Utility 8 | . . . . . . 1 2 . . . 3 . . 1 . 1 Weapon 4 | . . . . . . . 1 . 1 . 1 . . 1 . . Tool/Special 1 | . . . . . . . . . . . . . . 1 . . Average Slot Usage (%) 61 | . 38 57 57 57 49 65 76 77 81 81 77 81 85 73 21 21 Core 1 | . . . . . . 3 7 5 5 4 . . . . . 1 Reactor 1 | . . . . . . . . 1 . . 4 4 4 6 . . Treads 5 | . 28 28 28 28 . . . . . . . . . . . . Flight 7 | . . . . . 8 15 15 13 11 11 10 11 14 10 . 2 Device 6 | . . . . . 7 . . . 10 11 10 15 15 8 4 2 Storage 3 | . . . . . 7 7 7 6 5 5 5 4 4 3 . . Processor 6 | . 8 14 14 14 9 7 7 6 5 5 5 4 4 6 4 3 Hackware 12 | . . . . . 7 7 7 17 17 17 20 21 23 25 13 9 Protection 5 | . . . . . . 14 15 13 11 11 9 7 7 2 . . Slashing Weapon 8 | . 1 14 14 14 9 7 15 13 11 11 10 9 9 6 . . Peak Build Rating 120 | 2 4 4 7 9 47 63 63 72 80 80 88 108 107 120 25 58 Average Rating 58 | 1 2 4 6 7 42 56 62 69 79 79 84 99 106 103 25 31 On Entrance 45 | . 2 4 4 7 7 47 63 63 72 80 71 88 106 106 25 25 Avg Prop Armor Cover (%) 29 | 41 40 39 39 39 . 1 . . . 20 . . . 36 . 9 Naked Turns 71 | . . . . . . . . . . . . . . . . 71 Heaviest Build 61 | . 2 2 2 2 29 45 45 50 48 48 54 56 56 61 1 7 Greatest Support 80 | 20 3 3 3 3 50 55 55 55 55 55 56 63 63 80 3 30 Greatest Overweight (x) 9 | . . . . . . . 8 . . 9 . . . . . 2 Average Overweight (x) . | . . . . . . . . . . . . . . . . . Largest Inventory Capacity 15 | 5 5 5 5 5 15 15 15 15 15 15 15 15 15 15 5 5 Average Capacity 11 | 5 5 5 5 5 13 15 15 15 15 15 15 15 15 13 5 5 Most Carried 15 | . 1 1 5 5 11 15 15 15 14 15 15 15 15 15 4 5 Average Carried 9 | . . 1 3 5 5 12 14 14 12 13 13 14 14 12 4 4 Final Capacity 15 | 5 5 5 5 5 15 15 15 15 15 15 15 15 15 5 5 5 Final Carried 15 | . 1 1 5 5 11 15 15 15 13 15 15 15 14 4 4 2 Class Distribution -------------------- 32% | Mutant 32% | Hacker-Mutant 9% | Hacker-Ninja 8% | Hacker-Sprinter 8% | Wizard-Ninja 8% | Scout Dominant Class ---------------- Mutant | -10/Materials Mutant | -10/Mines Mutant | -10/Exiles Mutant | -9/Mines Scout | -8/Materials Mutant | -7/Factory Mutant | -7/DSF Hacker-Mutant | -6/Factory Hacker-Mutant | -5/Factory Hacker-Mutant | -5/DSF Hacker-Mutant | -4/Factory Hacker-Ninja | -3/Research Hacker-Ninja | -3/Armory Wizard-Ninja | -2/Research Hacker-Mutant | -2/Testing Hacker-Sprinter | -1/Access Resources | -11 -10 -10 -10 -9 -8 -7 -7 -6 -5 -5 -4 -3 -3 -2 -2 -1 ----------- Run | Yrd Mat Min Exi Min Mat Fac DSF Fac Fac DSF Fac Res Arm Res Tes Acc Matter Collected 714 | 191 . . 149 . . . 69 . . 111 . . . 180 . 14 Remotely . | . . . . . . . . . . . . . . . . . Salvage Created 248 | . . . . . . . 97 . . 151 . . . . . . Parts . | . . . . . . . . . . . . . . . . . Haulers Intercepted . | . . . . . . . . . . . . . . . . . Recyclers Shooed . | . . . . . . . . . . . . . . . . . Parts Field Recycled 2 | . . . . . . . . . . . . . . 2 . . Retrieved Matter 102 | . . . . . . . . . . . . . . 102 . . Parts Self-Destructed . | . . . . . . . . . . . . . . . . . Prevented . | . . . . . . . . . . . . . . . . . Parts Restored . | . . . . . . . . . . . . . . . . . Kills | -11 -10 -10 -10 -9 -8 -7 -7 -6 -5 -5 -4 -3 -3 -2 -2 -1 ------- Run | Yrd Mat Min Exi Min Mat Fac DSF Fac Fac DSF Fac Res Arm Res Tes Acc Combat Hostiles Destroyed . | . . . . . . . . . . . . . . . . . Classes Destroyed . | . . . . . . . . . . . . . . . . . Best Kill Streak . | . . . . . . . . . . . . . . . . . Combat Bots Only . | . . . . . . . . . . . . . . . . . Max Kills in Single Turn . | . . . . . . . . . . . . . . . . . Gunslinging . | . . . . . . . . . . . . . . . . . Exploded . | . . . . . . . . . . . . . . . . . Melee . | . . . . . . . . . . . . . . . . . Uniques/NPCs Destroyed . | . . . . . . . . . . . . . . . . . Combat | -11 -10 -10 -10 -9 -8 -7 -7 -6 -5 -5 -4 -3 -3 -2 -2 -1 -------- Run | Yrd Mat Min Exi Min Mat Fac DSF Fac Fac DSF Fac Res Arm Res Tes Acc Hostile Shots Fired 524 | . 13 7 . . 56 . 4 2 . 17 16 36 36 182 10 145 Missed 252 | . 3 5 . . 33 . 1 2 . 7 9 24 21 80 2 65 Hits 272 | . 10 2 . . 23 . 3 . . 10 7 12 15 102 8 80 Melee 11 | . . . . . 1 . . . . 8 . 1 . . . 1 Projectile 261 | . 10 2 . . 22 . 3 . . 2 7 11 15 102 8 79 AOE 2 | . . . . . . . 2 . . . . . . . . . Critical Strikes 13 | . . . . . 1 . . . . 6 . 2 1 1 . 2 Actively Blocked 1 | . . . . . . . . . . . . . 1 . . . Damage Taken 6440 | . 126 29 . . 247 . 99 . . 299 106 274 346 2420 209 2285 Core 2840 | . 22 15 . . 55 . . . . . . . 20 903 209 1616 Absorbed by Shields 44 | . . . . . . . . . . 44 . . . . . . Core Remaining (%) 88 | 100 . . . 85 90 . 100 100 . 100 100 . 98 . 23 . Volleys Fired . | . . . . . . . . . . . . . . . . . Largest . | . . . . . . . . . . . . . . . . . Hottest . | . . . . . . . . . . . . . . . . . Shots Fired . | . . . . . . . . . . . . . . . . . Gun . | . . . . . . . . . . . . . . . . . Cannon . | . . . . . . . . . . . . . . . . . Launcher . | . . . . . . . . . . . . . . . . . Special . | . . . . . . . . . . . . . . . . . Kinetic . | . . . . . . . . . . . . . . . . . Thermal . | . . . . . . . . . . . . . . . . . Explosive . | . . . . . . . . . . . . . . . . . Electromagnetic . | . . . . . . . . . . . . . . . . . Robot Hit Streak . | . . . . . . . . . . . . . . . . . Robot Miss Streak . | . . . . . . . . . . . . . . . . . Penetration Max . | . . . . . . . . . . . . . . . . . Secondary Targets . | . . . . . . . . . . . . . . . . . Shots Hit Robots . | . . . . . . . . . . . . . . . . . Core Hits 1 | . . . . . . . . . . . . . . . . 1 Critical Kills . | . . . . . . . . . . . . . . . . . Critical Parts Destroyed . | . . . . . . . . . . . . . . . . . Critical Strikes . | . . . . . . . . . . . . . . . . . Melee Attacks 12 | . . . . . 1 . 4 . . 7 . . . . . . Impact . | . . . . . . . . . . . . . . . . . Slashing 12 | . . . . . 1 . 4 . . 7 . . . . . . Piercing . | . . . . . . . . . . . . . . . . . Sneak Attacks . | . . . . . . . . . . . . . . . . . Combat Hostiles . | . . . . . . . . . . . . . . . . . Follow-up Attacks . | . . . . . . . . . . . . . . . . . Damage Inflicted 20 | . . . . . . . . . . . . . . 6 . 14 Guns . | . . . . . . . . . . . . . . . . . Cannons . | . . . . . . . . . . . . . . . . . Explosions . | . . . . . . . . . . . . . . . . . Melee . | . . . . . . . . . . . . . . . . . Ramming 20 | . . . . . . . . . . . . . . 6 . 14 Kinetic . | . . . . . . . . . . . . . . . . . Thermal . | . . . . . . . . . . . . . . . . . Explosive . | . . . . . . . . . . . . . . . . . Electromagnetic . | . . . . . . . . . . . . . . . . . Impact . | . . . . . . . . . . . . . . . . . Slashing . | . . . . . . . . . . . . . . . . . Piercing . | . . . . . . . . . . . . . . . . . Highest Corruption 5 | . . . . . . 1 1 . . . . . . 1 5 3 Average Corruption 1 | . . . . . . 1 1 . . . . . . 1 3 1 Corruption Purged . | . . . . . . . . . . . . . . . . . Corruption Blocked . | . . . . . . . . . . . . . . . . . Effects 6 | . . . . . . 1 1 . . . . . . . 3 1 Message Errors 3 | . . . . . . . . . . . . . . . 3 . Heat Flow Errors 2 | . . . . . . 1 . . . . . . . . . 1 Data Loss (minor) 1 | . . . . . . . 1 . . . . . . . . . Overload Shots . | . . . . . . . . . . . . . . . . . Overflow Damage . | . . . . . . . . . . . . . . . . . Projectiles . | . . . . . . . . . . . . . . . . . Explosions . | . . . . . . . . . . . . . . . . . Melee . | . . . . . . . . . . . . . . . . . Knockbacks . | . . . . . . . . . . . . . . . . . Impact . | . . . . . . . . . . . . . . . . . Kinetic . | . . . . . . . . . . . . . . . . . Secondary . | . . . . . . . . . . . . . . . . . Self-Inflicted Damage 9 | . . . . . . . . . . . . . . 3 . 6 Shots . | . . . . . . . . . . . . . . . . . Rammed 6 | . . . . . . . . . . . . . . 2 . 4 Targets Rammed 6 | . . . . . . . . . . . . . . 2 . 4 Kicked . | . . . . . . . . . . . . . . . . . Crushed . | . . . . . . . . . . . . . . . . . Highest Temperature 120 | . . . . . 4 120 . . . . . 24 11 30 . 59 Average Temperature 18 | . . . . . 4 67 . . . . . 13 6 10 . 33 Received Heat Transfer 652 | . 69 18 . . 54 . . . . . . 100 51 225 27 108 Siege Activations . | . . . . . . . . . . . . . . . . . Martial Activations . | . . . . . . . . . . . . . . . . . Shielding Activations . | . . . . . . . . . . . . . . . . . Robots Disrupted . | . . . . . . . . . . . . . . . . . Combat Hostiles . | . . . . . . . . . . . . . . . . . Robots Corrupted . | . . . . . . . . . . . . . . . . . Combat Hostiles . | . . . . . . . . . . . . . . . . . Parts Fried . | . . . . . . . . . . . . . . . . . Impact Corruptions . | . . . . . . . . . . . . . . . . . Robots Melted . | . . . . . . . . . . . . . . . . . Combat Hostiles . | . . . . . . . . . . . . . . . . . Parts Melted . | . . . . . . . . . . . . . . . . . Heat Transferred . | . . . . . . . . . . . . . . . . . Parts Sabotaged 3 | . . . . . . . . . . . . . . . . 3 Parts Stolen . | . . . . . . . . . . . . . . . . . Parts Stripped . | . . . . . . . . . . . . . . . . . Power Chain Reactions . | . . . . . . . . . . . . . . . . . Alert | -11 -10 -10 -10 -9 -8 -7 -7 -6 -5 -5 -4 -3 -3 -2 -2 -1 ------- Run | Yrd Mat Min Exi Min Mat Fac DSF Fac Fac DSF Fac Res Arm Res Tes Acc Maximum Alert Level 5 | . . . . . . . . . . . . . . 1 5 4 Low Security (%) 82 | 100 100 100 . 100 100 100 100 100 100 100 100 100 100 97 1 . Level 1 . | . . . . . . . . . . . . . . 2 . . Level 2 . | . . . . . . . . . . . . . . . . . Level 3 11 | . . . . . . . . . . . . . . . . 76 Level 4 3 | . . . . . . . . . . . . . . . . 23 Level 5 . | . . . . . . . . . . . . . . . . . High Security . | . . . . . . . . . . . . . . . . . Max Security 2 | . . . . . . . . . . . . . . . 98 . Peak Influence 1630 | . . 20 . 35 90 31 32 21 6 15 60 145 80 225 1630 1253 Initial 1100 | . . . . . 1 31 2 16 . . 2 12 75 36 109 1100 Average 209 | . . 2 . 10 13 7 5 7 2 14 18 13 68 25 1592 1090 Influence Increases 1388 | . . 30 . 45 120 4 30 15 10 15 105 195 45 351 30 393 Successful Hack 68 | . . . . . . 4 . . 10 . . 15 . 6 . 33 Disable Machine 45 | . . . . . 15 . 15 . . 15 . . . . . . Partial Spotted 60 | . . . . . . . . 15 . . . . . 15 30 . Lose Combat Pursuer 1215 | . . 30 . 45 105 . 15 . . . 105 180 45 330 . 360 Influence Decreases 1779 | . . 10 20 40 55 70 2 47 10 10 85 75 120 226 86 923 Entered New Map 940 | . . . 20 . 4 39 2 16 . . 3 13 70 34 86 653 Time Decay 624 | . . 10 . 40 51 31 . 31 10 . 82 62 50 77 . 180 Lost Part 215 | . . . . . . . . . . 10 . . . 115 . 90 Squads Dispatched 14 | . . . . . 2 1 1 1 . 1 1 1 . 1 . 5 Investigation 1 | . . . . . . . . . . . . . . . . 1 Extermination 5 | . . . . . . 1 . . . . 1 . . 1 . 2 Reinforcement 7 | . . . . . 2 . 1 1 . 1 . 1 . . . 1 Assault 1 | . . . . . . . . . . . . . . . . 1 Garrison . | . . . . . . . . . . . . . . . . . Intercept . | . . . . . . . . . . . . . . . . . Searches Triggered . | . . . . . . . . . . . . . . . . . Construction Impeded . | . . . . . . . . . . . . . . . . . Haulers Reinforced . | . . . . . . . . . . . . . . . . . Active Scanning Responses . | . . . . . . . . . . . . . . . . . Cargo Convoy Interrupts . | . . . . . . . . . . . . . . . . . Stealth | -11 -10 -10 -10 -9 -8 -7 -7 -6 -5 -5 -4 -3 -3 -2 -2 -1 --------- Run | Yrd Mat Min Exi Min Mat Fac DSF Fac Fac DSF Fac Res Arm Res Tes Acc Distress Signals 8 | . . . . . 3 . . . . . . 1 . 3 . 1 Communications Jammed 24 | . . . . . . . . . . . . 20 . 4 . . Distress Signals 24 | . . . . . . . . . . . . 20 . 4 . . Times Spotted 167 | . 7 2 . 1 20 . 7 4 . 4 4 21 16 35 6 40 Peak Tracking Total 22 | . 8 2 . 3 10 . 4 3 . 4 4 15 13 18 6 22 Tactical Retreats 26 | . . 1 . 2 2 . 1 . . . 2 3 2 5 . 8 ECM-based Alert Blocks 7 | . . . . . . . . . . . . . 7 . . . Traps | -11 -10 -10 -10 -9 -8 -7 -7 -6 -5 -5 -4 -3 -3 -2 -2 -1 ------- Run | Yrd Mat Min Exi Min Mat Fac DSF Fac Fac DSF Fac Res Arm Res Tes Acc Traps Triggered 5 | . . . . . . 1 . . . 1 1 . . . 1 1 Indirectly . | . . . . . . . . . . . . . . . . . Trap Hack Attempts . | . . . . . . . . . . . . . . . . . Triggered . | . . . . . . . . . . . . . . . . . Disarmed . | . . . . . . . . . . . . . . . . . Reprogrammed . | . . . . . . . . . . . . . . . . . Reused . | . . . . . . . . . . . . . . . . . Traps Extracted . | . . . . . . . . . . . . . . . . . Installed . | . . . . . . . . . . . . . . . . . Triggered . | . . . . . . . . . . . . . . . . . Machines | -11 -10 -10 -10 -9 -8 -7 -7 -6 -5 -5 -4 -3 -3 -2 -2 -1 ---------- Run | Yrd Mat Min Exi Min Mat Fac DSF Fac Fac DSF Fac Res Arm Res Tes Acc Machines Disabled 3 | . . . . . 1 . 1 . . 1 . . . . . . Max in Single Turn 1 | . . . . . 1 . 1 . . 1 . . . . . . Garrison Access 1 | . . . . . . . . . . . 1 . . . . . Machines Repaired . | . . . . . . . . . . . . . . . . . Machines Dismantled . | . . . . . . . . . . . . . . . . . Machines Sabotaged . | . . . . . . . . . . . . . . . . . Overloaded Fab Kills . | . . . . . . . . . . . . . . . . . Hacking | -11 -10 -10 -10 -9 -8 -7 -7 -6 -5 -5 -4 -3 -3 -2 -2 -1 --------- Run | Yrd Mat Min Exi Min Mat Fac DSF Fac Fac DSF Fac Res Arm Res Tes Acc Machines Accessed 27 | . . . . . 1 3 . . 4 . 6 1 2 4 . 6 Terminals 17 | . . . . . 1 3 . . 2 . 2 1 1 4 . 3 Fabricators 1 | . . . . . . . . . . . . . 1 . . . Repair Stations 2 | . . . . . . . . . . . 1 . . . . 1 Recycling Units 4 | . . . . . . . . . 2 . 1 . . . . 1 Scanalyzers 1 | . . . . . . . . . . . 1 . . . . . Garrison Access 2 | . . . . . . . . . . . 1 . . . . 1 Total Hacks 53 | . . . . . 2 5 . . 10 . 10 2 3 10 . 11 Successful 25 | . . . . . . 1 . . 5 . 6 1 1 5 . 6 Failed 28 | . . . . . 2 4 . . 5 . 4 1 2 5 . 5 Catastrophic 5 | . . . . . . 1 . . . . 1 1 . 1 . 1 Database Lockouts . | . . . . . . . . . . . . . . . . . Manual 9 | . . . 1 . . . . . 3 . 1 1 . 3 . . Terminals 32 | . . . . . 2 5 . . 4 . 2 2 2 10 . 5 Fabricators 1 | . . . . . . . . . . . . . 1 . . . Repair Stations 5 | . . . . . . . . . . . 2 . . . . 3 Recycling Units 11 | . . . . . . . . . 6 . 3 . . . . 2 Scanalyzers 1 | . . . . . . . . . . . 1 . . . . . Garrison Access 3 | . . . . . . . . . . . 2 . . . . 1 Terminal Hacks 13 | . . . . . . 1 . . 2 . 1 1 . 5 . 3 Record 1 | . . . . . . . . . . . . . . . . 1 Robot Analysis 1 | . . . . . . . . . . . . . . 1 . . Open DSF 3 | . . . . . . 1 . . 1 . 1 . . . . . Level Access Points 3 | . . . . . . . . . 1 . . . . 1 . 1 Emergency Access Points 1 | . . . . . . . . . . . . . . 1 . . Machine Index 1 | . . . . . . . . . . . . 1 . . . . Locate Traps 2 | . . . . . . . . . . . . . . 1 . 1 Zone Layout 1 | . . . . . . . . . . . . . . 1 . . Fabricator Hacks 1 | . . . . . . . . . . . . . 1 . . . Network Status 1 | . . . . . . . . . . . . . 1 . . . Repair Station Hacks 1 | . . . . . . . . . . . . . . . . 1 Refit 1 | . . . . . . . . . . . . . . . . 1 Recycling Unit Hacks 8 | . . . . . . . . . 3 . 3 . . . . 2 Recycle Component 3 | . . . . . . . . . 2 . 1 . . . . . Process 3 | . . . . . . . . . 1 . 1 . . . . 1 Retrieve Matter 2 | . . . . . . . . . . . 1 . . . . 1 Scanalyzer 1 | . . . . . . . . . . . 1 . . . . . Retrieve Study 1 | . . . . . . . . . . . 1 . . . . . Garrison Access Hacks 1 | . . . . . . . . . . . 1 . . . . . Seal Access 1 | . . . . . . . . . . . 1 . . . . . Unauthorized Hacks . | . . . . . . . . . . . . . . . . . Terminals . | . . . . . . . . . . . . . . . . . Fabricators . | . . . . . . . . . . . . . . . . . Repair Stations . | . . . . . . . . . . . . . . . . . Recycling Units . | . . . . . . . . . . . . . . . . . Scanalyzers . | . . . . . . . . . . . . . . . . . Garrison Access . | . . . . . . . . . . . . . . . . . Data Cores Recovered . | . . . . . . . . . . . . . . . . . Used . | . . . . . . . . . . . . . . . . . Hacking Detections 22 | . . . . . 1 2 . . 3 . 3 1 2 4 . 6 Full Trace Events 1 | . . . . . . . . . . . . . . . . 1 Feedback Events . | . . . . . . . . . . . . . . . . . Feedback Blocked . | . . . . . . . . . . . . . . . . . Robot Schematics Acquired . | . . . . . . . . . . . . . . . . . Robots Built . | . . . . . . . . . . . . . . . . . Authchips . | . . . . . . . . . . . . . . . . . Time . | . . . . . . . . . . . . . . . . . Total Robot Build Rating . | . . . . . . . . . . . . . . . . . Part Schematics Acquired . | . . . . . . . . . . . . . . . . . Parts Built . | . . . . . . . . . . . . . . . . . Authchips . | . . . . . . . . . . . . . . . . . Time . | . . . . . . . . . . . . . . . . . Total Part Build Rating . | . . . . . . . . . . . . . . . . . Part Studies Acquired 1 | . . . . . . . . . . . 1 . . . . . Parts Repaired . | . . . . . . . . . . . . . . . . . Time . | . . . . . . . . . . . . . . . . . Parts Recycled 3 | . . . . . . . . . 2 . 1 . . . . . Recycled Matter 183 | . . . . . . . . . 6 . 118 . . . . 59 Retrieved Matter 177 | . . . . . . . . . . . 118 . . . . 59 Retrieved Components . | . . . . . . . . . . . . . . . . . Parts Scanalyzed . | . . . . . . . . . . . . . . . . . Part Schematics Acquired . | . . . . . . . . . . . . . . . . . Parts Damaged . | . . . . . . . . . . . . . . . . . Bothacking | -11 -10 -10 -10 -9 -8 -7 -7 -6 -5 -5 -4 -3 -3 -2 -2 -1 ------------ Run | Yrd Mat Min Exi Min Mat Fac DSF Fac Fac DSF Fac Res Arm Res Tes Acc Used RIF Installer . | . . . . . . . . . . . . . . . . . Robots Hacked . | . . . . . . . . . . . . . . . . . Non-combat . | . . . . . . . . . . . . . . . . . Combat . | . . . . . . . . . . . . . . . . . Robot Hacks Applied . | . . . . . . . . . . . . . . . . . Relay Couplers Released . | . . . . . . . . . . . . . . . . . Fabnet Peak Effective % . | . . . . . . . . . . . . . . . . . Robots Rewired . | . . . . . . . . . . . . . . . . . Allies Hacked . | . . . . . . . . . . . . . . . . . Hacks Repelled . | . . . . . . . . . . . . . . . . . Allies | -11 -10 -10 -10 -9 -8 -7 -7 -6 -5 -5 -4 -3 -3 -2 -2 -1 -------- Run | Yrd Mat Min Exi Min Mat Fac DSF Fac Fac DSF Fac Res Arm Res Tes Acc Total Allies . | . . . . . . . . . . . . . . . . . Largest Group . | . . . . . . . . . . . . . . . . . Highest-Rated Group . | . . . . . . . . . . . . . . . . . Highest-Rated Ally . | . . . . . . . . . . . . . . . . . Total Orders . | . . . . . . . . . . . . . . . . . Ally Attacks . | . . . . . . . . . . . . . . . . . Total Damage . | . . . . . . . . . . . . . . . . . Kills . | . . . . . . . . . . . . . . . . . Allies Corrupted . | . . . . . . . . . . . . . . . . . Allies Melted . | . . . . . . . . . . . . . . . . . Intel | -11 -10 -10 -10 -9 -8 -7 -7 -6 -5 -5 -4 -3 -3 -2 -2 -1 ------- Run | Yrd Mat Min Exi Min Mat Fac DSF Fac Fac DSF Fac Res Arm Res Tes Acc Active Infowar (turns) 1448 | . . . . . 4 . . . 51 86 286 262 114 310 52 283 Optics 565 | . . . . . . . . . . . . . . 230 52 283 Sensors 4 | . . . . . 4 . . . . . . . . . . . Terrain 440 | . . . . . . . . . . . . 99 91 250 . . Traps 331 | . . . . . . . . . . . 85 246 . . . . Cloaking 643 | . . . . . . . . . 51 86 286 216 1 3 . . Jamming 867 | . . . . . . . . . 50 86 188 192 114 237 . . ECM 25 | . . . . . . . . . . . . 2 9 . . 14 Robot Analysis Total 1 | . . . . . . . . . . . . . . 1 . . Derelict Logs Recovered 4 | . . 2 . 2 . . . . . . . . . . . . Drone Launches . | . . . . . . . . . . . . . . . . . Drone Recoveries . | . . . . . . . . . . . . . . . . . Exploration | -11 -10 -10 -10 -9 -8 -7 -7 -6 -5 -5 -4 -3 -3 -2 -2 -1 ------------- Run | Yrd Mat Min Exi Min Mat Fac DSF Fac Fac DSF Fac Res Arm Res Tes Acc Turns Passed 2671 | 28 72 67 167 177 264 173 60 114 51 91 296 262 114 310 52 373 Spaces Moved 5131 | 47 135 131 332 344 449 319 44 225 121 73 703 411 192 663 103 839 Core 1431 | 46 135 131 332 344 . . . . . . . . . 102 103 238 Treads 3 | 1 . . . . . . . . . . . . . 2 . . Legs 1 | . . . . . . . . . . . . . . . . 1 Wheels . | . . . . . . . . . . . . . . . . . Hover . | . . . . . . . . . . . . . . . . . Flight 3696 | . . . . . 449 319 44 225 121 73 703 411 192 559 . 600 Fastest Speed 30 | 50 50 50 50 50 50 39 39 39 39 39 39 35 35 35 50 30 Average Speed 42 | 52 50 50 50 50 50 40 96 39 39 88 39 37 35 37 50 36 Slowest Speed 755 | 160 50 50 50 50 50 50 675 39 39 755 39 39 35 160 50 150 Overloaded Moves . | . . . . . . . . . . . . . . . . . Propulsion Burnouts . | . . . . . . . . . . . . . . . . . Robots Hopped 40 | . . . . . 8 . . 2 . 2 5 5 1 5 . 12 Potential Cave-ins . | . . . . . . . . . . . . . . . . . Cave-ins Triggered . | . . . . . . . . . . . . . . . . . Exploration Rate (%) 29 | 3 34 31 69 79 36 10 44 8 3 71 18 12 18 20 20 27 Regions Visited 16 Branch Regions 5 Pre-discovered Areas 1 | . . 1 . . . . . . . . . . . . . . Known Exits Taken 11 | . 1 1 1 1 1 1 . 1 1 . 1 . . 1 1 . Unknown Exits Taken 3 | 1 . . . . . . . . . . . 1 1 . . . Scrap Searched 1 | . . . . 1 . . . . . . . . . . . . Spaces Dug . | . . . . . . . . . . . . . . . . . Terrain Destroyed . | . . . . . . . . . . . . . . . . . Melee . | . . . . . . . . . . . . . . . . . Projectile . | . . . . . . . . . . . . . . . . . AOE . | . . . . . . . . . . . . . . . . . Terrain Rammed . | . . . . . . . . . . . . . . . . . Walls Destroyed . | . . . . . . . . . . . . . . . . . Machines Disabled . | . . . . . . . . . . . . . . . . . Actions | -11 -10 -10 -10 -9 -8 -7 -7 -6 -5 -5 -4 -3 -3 -2 -2 -1 --------- Run | Yrd Mat Min Exi Min Mat Fac DSF Fac Fac DSF Fac Res Arm Res Tes Acc Total 5531 | 48 137 131 332 348 476 362 57 249 124 87 720 511 236 717 102 894 Wait 261 | . . 1 . 3 16 27 . 17 . . 4 94 34 34 . 31 Move 5037 | 46 134 130 331 343 432 318 43 220 120 68 692 400 189 653 102 816 Hop 39 | . . . . . 8 . . 2 . 2 5 5 1 5 . 11 Pick Up 51 | . 1 . 1 . 10 8 5 3 2 3 7 3 2 5 . 1 Fast Attach 22 | 2 2 . . 1 4 3 . 1 . . . 1 1 2 . 5 Attach 25 | . . . . . 1 2 . 2 2 . 4 2 1 4 . 7 Detach 11 | . . . . . 1 1 . 1 . . 1 . . 1 . 6 Swap 21 | . . . . . 1 . . 1 . . 3 6 4 6 . . Drop 34 | . . . . 1 2 3 5 2 . 1 4 . 4 6 . 6 Fire . | . . . . . . . . . . . . . . . . . Melee 12 | . . . . . 1 . 4 . . 7 . . . . . . Ram 5 | . . . . . . . . . . . . . . 1 . 4 Kick . | . . . . . . . . . . . . . . . . . Crush . | . . . . . . . . . . . . . . . . . Escape Stasis 6 | . . . . . . . . . . 6 . . . . . . Rewire . | . . . . . . . . . . . . . . . . . Trap . | . . . . . . . . . . . . . . . . . Miscellaneous 7 | . . . . . . . . . . . . . . . . 7 Route ------- -11/Scrapyard -10/Materials (discovered 2 exits: *Mat / *Min) -10/Mines (discovered 2 exits: *Mat / *Exi) -10/Exiles -9/Mines -8/Materials -7/Factory (discovered 2 exits: Low / DSF) -7/DSF -6/Factory -5/Factory (discovered 5 exits: Fac x4 / DSF) -5/DSF -4/Factory -3/Research -3/Armory -2/Research (discovered 4 exits: Acc x3 / *Tes) -2/Testing -1/Access (discovered 1 exit: Sur) History --------- Turn | Location | Event 5 | -11/Scrapyard | Discovered new exit (range 16) 29 | -11/Scrapyard | Entered Materials 88 | -10/Materials | Discovered new exit (range 15) 91 | -10/Materials | Discovered new exit (range 14) 100 | -10/Materials | Identified exit to Mines 101 | -10/Materials | Entered Mines 104 | -10/Mines | Discovered new exit (range 9) 105 | -10/Mines | Learned location of Storage (-8) 107 | -10/Mines | Identified exit to Materials 154 | -10/Mines | Learned Materials security intel 155 | -10/Mines | Learned Materials emergency access door positions 164 | -10/Mines | Assembled infested the area 165 | -10/Mines | Deemed a non-threat by the Exiles lab entrance 166 | -10/Mines | Discovered new exit (range 5) 167 | -10/Mines | Identified exit to Exiles 168 | -10/Mines | Entered Exiles 181 | -10/Exiles | Met 8R-AWN 189 | -10/Exiles | Met EX-HEX 203 | -10/Exiles | Met EX-BIN 209 | -10/Exiles | Aligned with FarCom system 209 | -10/Exiles | Given EX-Vault access code 221 | -10/Exiles | Opened EX-Vault 223 | -10/Exiles | Found Prototype Flight Unit 233 | -10/Exiles | Warned to stay clear of 0b10 Research branches 249 | -10/Exiles | Met EX-DEC 282 | -10/Exiles | Discovered new exit (range 12) 304 | -10/Exiles | Build established: Mutant 335 | -10/Exiles | Identified exit to Mines 335 | -10/Exiles | Left Exiles lab with Flying Fortress v7 335 | -10/Exiles | Entered Mines 337 | -9/Mines | Met a Derelict bent on vengeance 372 | -9/Mines | Learned 2 Materials zone layouts 489 | -9/Mines | Discovered new exit (range 13) 496 | -9/Mines | Identified exit to Materials 512 | -9/Mines | Entered Materials 512 | -8/Materials | Evolved 4 slots: Propulsion x2, Utility x2 514 | -8/Materials | Identified Flying Fortress v7 773 | -8/Materials | Discovered new exit (range 5) 775 | -8/Materials | Identified exit to Factory 776 | -8/Materials | Entered Factory 776 | -7/Factory | Evolved 2 slots: Propulsion x1, Utility x1 777 | -7/Factory | Identified exit to Lower Caves 940 | -7/Factory | Identified exit to DSF 949 | -7/Factory | Entered DSF 959 | -7/DSF | Assembled infested the area 984 | -7/DSF | Discovered new exit (range 16) 997 | -7/DSF | Additional patrols routed to DSF 1003 | -7/DSF | Identified exit to Factory 1009 | -7/DSF | Entered Factory 1009 | -6/Factory | Evolved 2 slots: Utility x2 1107 | -6/Factory | Discovered new exit (range 15) 1123 | -6/Factory | Identified exit to Factory 1123 | -6/Factory | Entered another Factory area 1123 | -5/Factory | Evolved 2 slots: Utility x2 1143 | -5/Factory | Identified exit to Factory 1153 | -5/Factory | Identified exit to DSF 1174 | -5/Factory | Entered DSF 1255 | -5/DSF | Additional patrols routed to DSF 1261 | -5/DSF | Discovered exit to Factory (range 11) 1265 | -5/DSF | Entered Factory 1265 | -4/Factory | Evolved 2 slots: Propulsion x1, Utility x1 1319 | -4/Factory | Build established: Hacker-Mutant 1510 | -4/Factory | Discovered new exit (range 15) 1515 | -4/Factory | Identified exit to Research 1561 | -4/Factory | Entered Research 1561 | -3/Research | Evolved 2 slots: Utility x2 1820 | -3/Research | Discovered new exit (range 4) 1823 | -3/Research | Entered Armory 1936 | -3/Armory | Discovered new exit (range 3) 1937 | -3/Armory | Entered Research 1937 | -2/Research | Evolved 2 slots: Power x1, Propulsion x1 2052 | -2/Research | Identified exit to Access 2242 | -2/Research | Discovered new exit (range 9) 2243 | -2/Research | Core integrity fell below 50% 2246 | -2/Research | Identified exit to Testing 2247 | -2/Research | Entered Testing 2248 | -2/Testing | Maximum security lockdown engaged 2278 | -2/Testing | Lost 13 parts (1p5n5u2w) 2294 | -2/Testing | Discovered exit to Access (range 10) 2299 | -2/Testing | Entered Access 2299 | -1/Access | Evolved 2 slots: Propulsion x2 2465 | -1/Access | Identified exit to Surface 2549 | -1/Access | First assault squad dispatched 2613 | -1/Access | Lost 6 parts (3n3u) 2623 | -1/Access | Core integrity fell below 50% 2654 | -1/Access | Core integrity fell below 20% 2672 | -1/Access | Destroyed by H-88 Terminator with KE Penetrator Last Messages --------------- 02629_ Knocked back. 02631_ K-01 Serf collects debris. 02633_ Connecting with Terminal... 02633_ ALERT: Suspicious activity at Terminal A001. Dispatching Investigation squad. 02636_ Dismantling Sealed Barrier with Imp. Plasma Cutter. 02644_ Terminal disabled. 02646_ Dismantling Sealed Barrier with Imp. Plasma Cutter. 02649_ Slug penetrates Terminal. 02649_ Imp. Plasma Cutter destroyed. 02653_ Penetrated by Slug. 02653_ Backup Power VII destroyed. 02654_ Slug penetrates Sealed Barrier. 02654_ Penetrated by Slug. 02659_ Slug penetrates Wall. 02659_ Penetrated by Slug. 02667_ Slug penetrates Wall. 02669_ Slammed into H-88 Terminator. 02670_ Penetrated by Slug. 02671_ Slammed into H-88 Terminator. Map ----- +----------------------------------------------------+ | ????????#* # """ #???????????????????????????? | | ????????# / " #???????????????????????????? | | ????????# # #???????????????????????????? | | ????????# #?? #???????????????????????????? | | ????????# #????######???????????????????????????? | | ????????# %#?????????????????????????????????????? | | ????????# #######"??????????????????????????????? | | ????????# """T""""??????????????????????????????? | | ????????# """ "??????????????BB??????????????? | | ????????# "??????????????BB??????????????? | | ????????# "??????????????????????????????? | | ????????# "??????????????????????????????? | | ????????# "????